Cogmind - Beta 11 *** ADVENTURER MODE // 2022.03.31 @ 10:54:15 Player: Deep Beef Result: Destroyed by P-70 Sage with Tesla Rifle Performance ------------- Evolutions (5) 2500 Regions Visited (7) 1400 Robots Destroyed (61) 305 Value Destroyed (2224) 2224 Prototype IDs (3) 60 Alien Tech Used (0) 0 Bonus (0) 0 TOTAL SCORE: 6489 Bonus ------- None Cogmind --------- Core Integrity 0/1000 Matter 300/300 Energy 100/100 System Corruption 8% Temperature Cool (0) Movement Core (1350) Ox26 Location -5/Factory Parts ------- > --- POWER (1) -------- (None) > --- PROPULSION (6) --- (None) > --- UTILITY (8) ------ Huge Storage Unit Advanced Visual Processing Unit Hacking Suite > --- WEAPON (2) ------- (None) > --- INVENTORY (25) --- Improved Deuterium Engine Advanced Heat Sink Medium Storage Unit Advanced Signal Interpreter Advanced Signal Interpreter Recoil Nullifier ECM Suite Shock Absorption System System Restoration Module Heavy Ion Cannon Missile Launcher Remote Datajack Spear Peak State ------------ > --- POWER ------------ Micro Nuclear Core > --- PROPULSION ------- Armored Huge Wheel Armored Huge Wheel Armored Huge Wheel > --- UTILITY ---------- Huge Storage Unit Advanced Visual Processing Unit Improved Sensor Array Advanced Signal Interpreter Improved Power Shielding Utility Shielding Improved Light Armor Plating Hacking Suite > --- WEAPON ----------- Plasma Rifle KE Penetrator > --- INVENTORY -------- Improved Deuterium Engine Micro Nuclear Core F-cell Engine Carbon-fiber Leg Armored Huge Wheel Advanced Heat Sink Medium Storage Unit Advanced Signal Interpreter Advanced Signal Interpreter Recoil Nullifier ECM Suite Shock Absorption System System Restoration Module Improved Arc Projector Heavy Ion Cannon Heavy Ion Cannon Heavy Ion Cannon High-powered Shotgun Missile Launcher Remote Datajack Great Maul Spear [Rating: 70] Favorites ----------- Power Ion Engine Engine Ion Engine Power Core Micro Nuclear Core Propulsion Light Treads Treads Light Treads Leg Carbon-fiber Leg Wheel Armored Huge Wheel Utility Utility Shielding Device ECM Suite Storage Medium Storage Unit Processor Targeting Computer Hackware Hacking Suite Protection Utility Shielding Weapon Assault Rifle Energy Gun EM Pulse Gun Energy Cannon Heavy Ion Cannon Ballistic Gun Assault Rifle Ballistic Cannon Assault Cannon Impact Weapon Great Maul Build | -11 -10 -10 -9 -8 -7 -6 -5 ------- Run | Scr Mat Min Mat Mat Fac Fac Fac Slots Evolved 10 | . . . 2 2 2 2 2 Power . | . . . . . . . . Propulsion 4 | . . . . . 2 . 2 Utility 6 | . . . 2 2 . 2 . Weapon . | . . . . . . . . Parts Attached 56 | 7 1 2 4 22 3 3 14 Power 8 | 1 . . . 5 . . 2 Engine 3 | 1 . . . 1 . . 1 Core 5 | . . . . 4 . . 1 Reactor . | . . . . . . . . Propulsion 10 | 2 . . . 4 1 . 3 Treads 3 | 2 . . . 1 . . . Leg 3 | . . . . 2 . . 1 Wheel 4 | . . . . 1 1 . 2 Hover . | . . . . . . . . Flight . | . . . . . . . . Utility 17 | 1 1 2 2 6 . 2 3 Device 4 | . . . 1 1 . 1 1 Storage 4 | 1 . 2 . 1 . . . Processor 5 | . 1 . . 2 . . 2 Hackware 1 | . . . . 1 . . . Protection 3 | . . . 1 1 . 1 . Artifact . | . . . . . . . . Weapon 21 | 3 . . 2 7 2 1 6 Energy Gun 6 | 2 . . . 2 . 1 1 Energy Cannon 5 | . . . . 2 1 . 2 Ballistic Gun 7 | 1 . . 1 2 1 . 2 Ballistic Cannon 2 | . . . 1 1 . . . Launcher . | . . . . . . . . Special Weapon . | . . . . . . . . Impact Weapon 1 | . . . . . . . 1 Slashing Weapon . | . . . . . . . . Piercing Weapon . | . . . . . . . . Special Melee Weapon . | . . . . . . . . Unidentified Prototypes 3 | . . . . 2 . . 1 Parts Lost 29 | . . . 1 7 1 . 20 Power 5 | . . . . 2 . . 3 Propulsion 8 | . . . . 3 . . 5 Utility 7 | . . . . 2 . . 5 Weapon 9 | . . . 1 . 1 . 7 Highest Loss Streak 17 | . . . 1 4 1 . 17 To Critical Strikes 2 | . . . . . . . 2 Average Slot Usage (%) 89 | . 99 100 96 90 83 85 73 Engine 5 | . 14 14 11 . . . . Core 4 | . . . . 7 7 6 4 Treads 11 | . 28 28 22 5 . . . Leg 1 | . . . . 5 . . . Wheel 4 | . . . . . 15 13 13 Device 7 | . . . 8 15 7 12 4 Storage 9 | . 14 14 11 9 7 6 5 Processor 12 | . 13 14 11 16 7 6 10 Hackware 2 | . . . . 1 7 6 5 Protection 10 | . . . 11 11 15 20 14 Energy Gun 5 | . 14 14 6 2 . 4 4 Energy Cannon 1 | . . . . 3 4 1 . Ballistic Gun 8 | . 14 14 13 5 10 6 4 Ballistic Cannon 1 | . . . 1 5 . . . Naked Turns . | . . . . . . . . Heaviest Build 108 | 14 14 19 22 100 102 108 104 Greatest Support 84 | 40 40 40 40 40 56 56 84 Greatest Overweight (x) 34 | 1 . . . 8 1 1 34 Average Overweight (x) . | . . . . 1 1 1 1 Largest Inventory Capacity 25 | 8 8 10 10 25 25 25 25 Average Capacity 14 | 7 8 9 10 10 25 25 25 Most Carried 23 | 2 7 8 10 17 20 19 23 Average Carried 10 | 1 4 7 6 8 17 18 19 Final Capacity 25 | 8 8 10 10 25 25 25 25 Final Carried 19 | 2 7 8 10 17 19 19 13 Class Distribution -------------------- 58% | Mutant 23% | Hacker-Mutant 12% | Hacker-Skirmisher 5% | Scavenger-Mutant Dominant Class ---------------- Mutant | -10/Materials Mutant | -10/Mines Mutant | -9/Materials Mutant | -8/Materials Hacker-Mutant | -7/Factory Hacker-Mutant | -6/Factory Hacker-Skirmisher | -5/Factory Resources | -11 -10 -10 -9 -8 -7 -6 -5 ----------- Run | Scr Mat Min Mat Mat Fac Fac Fac Matter Collected 1272 | 209 113 6 145 464 127 . 208 Remotely . | . . . . . . . . Salvage Created 2163 | . 121 92 363 758 159 . 670 Parts 126 | . 8 4 33 53 6 . 22 Haulers Intercepted . | . . . . . . . . Recyclers Shooed 1 | . . . . 1 . . . Parts Field Recycled . | . . . . . . . . Retrieved Matter . | . . . . . . . . Parts Self-Destructed . | . . . . . . . . Prevented . | . . . . . . . . Kills | -11 -10 -10 -9 -8 -7 -6 -5 ------- Run | Scr Mat Min Mat Mat Fac Fac Fac Combat Hostiles Destroyed 53 | . 2 2 11 22 4 . 12 Melee 2 | . . . . . . . 2 Guns 23 | . 2 1 8 4 3 . 5 Cannons 22 | . . . 3 15 1 . 3 AOE 4 | . . 1 . 3 . . . Classes Destroyed 9 | . 3 . 1 2 1 . 2 Worker 1 | . . . . . . . 1 Watcher 7 | . 2 . 1 4 . . . Swarmer 15 | . 1 . 4 8 . . 2 Grunt 19 | . 1 2 4 7 . . 5 Brawler 1 | . . . . . . . 1 Duelist 1 | . . . . 1 . . . Sentry 10 | . . . 3 4 2 . 1 Hunter 4 | . . . . 2 1 . 1 Programmer 3 | . . . . . 1 . 2 Best Kill Streak 5 | . 1 2 3 4 1 . 5 Combat Bots Only 5 | . 1 2 3 4 1 . 5 Max Kills in Single Turn 1 | . 1 1 1 1 1 . 1 Gunslinging . | . . . . . . . . Exploded 1 | . . 1 . 1 . . . Melee 1 | . . . . . . . 1 Uniques/NPCs Destroyed . | . . . . . . . . Combat | -11 -10 -10 -9 -8 -7 -6 -5 -------- Run | Scr Mat Min Mat Mat Fac Fac Fac Damage Taken 5666 | . 214 48 236 1010 584 . 3574 Core 1341 | . 29 . 49 156 97 . 1010 Absorbed by Shields . | . . . . . . . . Redirected to Shielding 154 | . . . 2 46 37 . 69 Core Remaining (%) 88 | 100 . 88 87 71 86 100 . Volleys Fired 176 | . 14 2 30 66 24 . 40 Largest 2 | . 2 2 2 2 2 . 2 Hottest 130 | . 60 60 60 107 90 . 130 Shots Fired 333 | . 28 4 56 131 47 . 67 Gun 226 | . 28 4 49 63 38 . 44 Cannon 107 | . . . 7 68 9 . 23 Launcher . | . . . . . . . . Special . | . . . . . . . . Kinetic 200 | . 14 2 39 86 38 . 21 Thermal 69 | . . . . 23 9 . 37 Explosive . | . . . . . . . . Electromagnetic 64 | . 14 2 17 22 . . 9 Robot Hit Streak 48 | . 13 7 25 48 10 . 23 Robot Miss Streak 3 | . 1 . 1 2 2 . 3 Penetration Max 1 | . . . . . . . 1 Secondary Targets 1 | . . . . . . . 1 Max Gunslinging Chain 1 | . . . . . . . 1 Shots Hit Robots 280 | . 23 4 47 108 40 . 58 Core Hits 110 | . 7 3 20 43 14 . 23 Critical Kills 2 | . . . . . . . 2 Critical Parts Destroyed 5 | . . . . 1 1 . 3 Critical Strikes 11 | . 2 . . 2 1 . 6 Burn 1 | . . . . . . . 1 Destroy 3 | . . . . 1 1 . 1 Blast 1 | . . . . 1 . . . Corrupt 2 | . 2 . . . . . . Smash 4 | . . . . . . . 4 Melee Attacks 8 | . . . . . . . 8 Impact 8 | . . . . . . . 8 Slashing . | . . . . . . . . Piercing . | . . . . . . . . Sneak Attacks . | . . . . . . . . Combat Hostiles . | . . . . . . . . Follow-up Attacks . | . . . . . . . . Damage Inflicted 5322 | . 360 87 595 2094 606 . 1580 Guns 2468 | . 321 43 447 559 444 . 654 Cannons 2262 | . . . 147 1364 162 . 589 Explosions 254 | . 39 44 . 171 . . . Melee 337 | . . . . . . . 337 Ramming 1 | . . . 1 . . . . Kinetic 2510 | . 151 15 425 1098 444 . 377 Thermal 1495 | . 39 44 . 473 162 . 777 Explosive . | . . . . . . . . Electromagnetic 979 | . 170 28 169 523 . . 89 Impact 337 | . . . . . . . 337 Slashing . | . . . . . . . . Piercing . | . . . . . . . . Highest Corruption 7 | . . . . 1 . . 7 Average Corruption 2 | . . . . 1 . . 5 Corruption Purged . | . . . . . . . . Corruption Blocked . | . . . . . . . . Effects 9 | . . . . 4 . . 5 Message Errors 3 | . . . . 1 . . 2 Matter Fused 5 | . . . . 2 . . 3 Energy Discharges 1 | . . . . 1 . . . Overload Shots . | . . . . . . . . Overflow Damage 154 | . 3 . . 56 4 . 91 Projectiles 54 | . . . . 46 4 . 4 Explosions 13 | . 3 . . 10 . . . Melee 87 | . . . . . . . 87 Knockbacks 14 | . . . 3 10 . . 1 Impact 1 | . . . . . . . 1 Kinetic 12 | . . . 3 9 . . . Secondary 1 | . . . . 1 . . . Self-Inflicted Damage 135 | . 28 26 . 81 . . . Shots 5 | . 1 1 . 3 . . . Rammed 1 | . . . 1 . . . . Targets Rammed 1 | . . . 1 . . . . Kicked . | . . . . . . . . Crushed . | . . . . . . . . Highest Temperature 296 | . 111 12 33 296 72 . 144 Average Temperature 56 | . 61 12 14 73 22 . 45 Received Heat Transfer 1101 | . 99 18 108 342 165 . 369 Effects 2 | . . . . 2 . . . Interference 2 | . . . . 2 . . . Siege Activations . | . . . . . . . . Robots Corrupted 1 | . . . . 1 . . . Combat Hostiles . | . . . . . . . . Parts Fried 6 | . . . . 4 . . 2 Impact Corruptions 3 | . . . . . . . 3 Robots Melted . | . . . . . . . . Combat Hostiles . | . . . . . . . . Parts Melted 5 | . . . . 2 . . 3 Heat Transferred 2539 | . 50 . . 990 222 . 1277 Parts Sabotaged . | . . . . . . . . Parts Stolen . | . . . . . . . . Parts Stripped . | . . . . . . . . Power Chain Reactions 6 | . 1 1 . 4 . . . Missiles Intercepted . | . . . . . . . . Alert | -11 -10 -10 -9 -8 -7 -6 -5 ------- Run | Scr Mat Min Mat Mat Fac Fac Fac Peak Influence 279 | . 99 81 188 279 256 98 163 Initial 60 | . . 16 . 60 45 38 40 Average 76 | . 39 46 74 111 127 45 48 Maximum Alert Level 1 | . . . . 1 1 . . Low Security (%) 91 | 100 100 100 100 81 68 100 100 Level 1 8 | . . . . 18 31 . . Level 2 . | . . . . . . . . Level 3 . | . . . . . . . . Level 4 . | . . . . . . . . Level 5 . | . . . . . . . . High Security . | . . . . . . . . Max Security . | . . . . . . . . Squads Dispatched 13 | . . . 1 3 2 . 7 Investigation 1 | . . . 1 . . . . Extermination 3 | . . . . . 1 . 2 Reinforcement 7 | . . . . 3 1 . 3 Assault . | . . . . . . . . Garrison 2 | . . . . . . . 2 Intercept . | . . . . . . . . Searches Triggered . | . . . . . . . . Construction Impeded 2 | . . . . 1 . . 1 Haulers Reinforced . | . . . . . . . . Active Scanning Responses . | . . . . . . . . Cargo Convoy Interrupts . | . . . . . . . . Stealth | -11 -10 -10 -9 -8 -7 -6 -5 --------- Run | Scr Mat Min Mat Mat Fac Fac Fac Distress Signals 6 | . . . 3 3 . . . Communications Jammed . | . . . . . . . . Distress Signals . | . . . . . . . . Times Spotted 117 | . 8 9 18 40 11 4 27 Peak Tracking Total 9 | . 3 9 4 5 4 4 8 Tactical Retreats 13 | . 2 2 . 7 1 1 . Traps | -11 -10 -10 -9 -8 -7 -6 -5 ------- Run | Scr Mat Min Mat Mat Fac Fac Fac Traps Triggered 6 | . 1 . 1 2 . . 2 Indirectly . | . . . . . . . . Trap Hack Attempts . | . . . . . . . . Triggered . | . . . . . . . . Disarmed . | . . . . . . . . Reprogrammed . | . . . . . . . . Reused . | . . . . . . . . Traps Extracted . | . . . . . . . . Installed . | . . . . . . . . Triggered . | . . . . . . . . Machines | -11 -10 -10 -9 -8 -7 -6 -5 ---------- Run | Scr Mat Min Mat Mat Fac Fac Fac Machines Disabled 1 | . 1 . . . . . . Max in Single Turn 1 | . 1 . . . . . . Machines Sabotaged . | . . . . . . . . Garrisons Compromised . | . . . . . . . . Overloaded Fab Kills . | . . . . . . . . Hacking | -11 -10 -10 -9 -8 -7 -6 -5 --------- Run | Scr Mat Min Mat Mat Fac Fac Fac Machines Accessed 14 | . 2 . 2 8 . 1 1 Terminals 10 | . 2 . 1 5 . 1 1 Fabricators . | . . . . . . . . Repair Stations . | . . . . . . . . Recycling Units 2 | . . . 1 1 . . . Scanalyzers 1 | . . . . 1 . . . Garrison Access 1 | . . . . 1 . . . Total Hacks 36 | . 5 . 4 24 . 1 2 Successful 26 | . 4 . 2 19 . . 1 Failed 10 | . 1 . 2 5 . 1 1 Catastrophic 1 | . . . . 1 . . . Database Lockouts . | . . . . . . . . Manual 14 | . 2 . 1 8 . 1 2 Terminals 26 | . 5 . 2 16 . 1 2 Fabricators . | . . . . . . . . Repair Stations . | . . . . . . . . Recycling Units 5 | . . . 2 3 . . . Scanalyzers 4 | . . . . 4 . . . Garrison Access 1 | . . . . 1 . . . Terminal Hacks 10 | . 2 . . 8 . . . Branch Access Points 2 | . 1 . . 1 . . . Emergency Access Points 1 | . 1 . . . . . . Alert Level 1 | . . . . 1 . . . Unreport Threat 3 | . . . . 3 . . . Dispatch Records 1 | . . . . 1 . . . Maintenance Status 1 | . . . . 1 . . . Hauler Manifests 1 | . . . . 1 . . . Fabricator Hacks . | . . . . . . . . Repair Station Hacks . | . . . . . . . . Recycling Unit Hacks 1 | . . . 1 . . . . Retrieve Components 1 | . . . 1 . . . . Scanalyzer 4 | . . . . 4 . . . Insert Component 2 | . . . . 2 . . . Analyze 2 | . . . . 2 . . . Garrison Access Hacks . | . . . . . . . . Unauthorized Hacks 11 | . 2 . 1 7 . . 1 Terminals 10 | . 2 . 1 6 . . 1 Assimilate 1 | . . . . 1 . . . Botnet 9 | . 2 . 1 5 . . 1 Fabricators . | . . . . . . . . Repair Stations . | . . . . . . . . Recycling Units . | . . . . . . . . Scanalyzers . | . . . . . . . . Garrison Access 1 | . . . . 1 . . . Reprogram 1 | . . . . 1 . . . Data Cores Recovered . | . . . . . . . . Used . | . . . . . . . . Hacking Detections 10 | . 2 . 2 4 . 1 1 Full Trace Events . | . . . . . . . . Feedback Events . | . . . . . . . . Feedback Blocked . | . . . . . . . . Robot Schematics Acquired . | . . . . . . . . Robots Built . | . . . . . . . . Authchips . | . . . . . . . . Time . | . . . . . . . . Total Robot Build Rating . | . . . . . . . . Part Schematics Acquired 2 | . . . . 2 . . . Parts Built . | . . . . . . . . Authchips . | . . . . . . . . Time . | . . . . . . . . Total Part Build Rating . | . . . . . . . . Parts Repaired . | . . . . . . . . Time . | . . . . . . . . Parts Recycled . | . . . . . . . . Recycled Matter . | . . . . . . . . Retrieved Matter . | . . . . . . . . Retrieved Components 4 | . . . 4 . . . . Parts Scanalyzed 2 | . . . . 2 . . . Part Schematics Acquired 2 | . . . . 2 . . . Parts Damaged . | . . . . . . . . Bothacking | -11 -10 -10 -9 -8 -7 -6 -5 ------------ Run | Scr Mat Min Mat Mat Fac Fac Fac Used RIF Installer . | . . . . . . . . Robots Hacked . | . . . . . . . . Non-combat . | . . . . . . . . Combat . | . . . . . . . . Robot Hacks Applied . | . . . . . . . . Relay Couplers Released . | . . . . . . . . Fabnet Peak Effective % . | . . . . . . . . Robots Rewired . | . . . . . . . . Allies Hacked . | . . . . . . . . Hacks Repelled . | . . . . . . . . Allies | -11 -10 -10 -9 -8 -7 -6 -5 -------- Run | Scr Mat Min Mat Mat Fac Fac Fac Total Allies 5 | . . 5 . . . . . Largest Group 5 | . . 5 . . . . . Highest-Rated Group 78 | . . 78 . . . . . Highest-Rated Ally 31 | . . 31 . . . . . Total Orders . | . . . . . . . . Ally Attacks 29 | . . 29 . . . . . Total Damage 293 | . . 293 . . . . . Kills 4 | . . 4 . . . . . Allies Corrupted . | . . . . . . . . Allies Melted . | . . . . . . . . Intel | -11 -10 -10 -9 -8 -7 -6 -5 ------- Run | Scr Mat Min Mat Mat Fac Fac Fac Robot Analysis Total . | . . . . . . . . Derelict Logs Recovered 2 | . . 2 . . . . . Drone Launches . | . . . . . . . . Drone Recoveries . | . . . . . . . . Exploration | -11 -10 -10 -9 -8 -7 -6 -5 ------------- Run | Scr Mat Min Mat Mat Fac Fac Fac Turns Passed 5070 | 66 511 659 711 1584 437 284 818 Spaces Moved 2432 | 37 280 401 354 553 266 237 304 Core 49 | 5 . . . 41 . . 3 Treads 1336 | 32 280 401 354 269 . . . Legs 232 | . . . . 229 . . 3 Wheels 815 | . . . . 14 266 237 298 Hover . | . . . . . . . . Flight . | . . . . . . . . Fastest Speed 50 | 50 160 160 160 115 115 115 115 Average Speed 159 | 147 160 160 160 215 115 115 134 Slowest Speed 1750 | 160 160 160 160 450 115 115 1750 Overloaded Moves . | . . . . . . . . Propulsion Burnouts . | . . . . . . . . Robots Hopped . | . . . . . . . . Cave-ins Triggered . | . . . . . . . . Exploration Rate (%) 29 | 5 44 77 30 58 7 7 9 Regions Visited 7 Branch Regions 1 Pre-discovered Areas 1 | . . 1 . . . . . Known Exits Taken 1 | . 1 . . . . . . Unknown Exits Taken 6 | 1 . 1 1 1 1 1 . Scrap Searched 1 | . . 1 . . . . . Spaces Dug . | . . . . . . . . Terrain Destroyed 27 | . 2 5 . 17 1 . 2 Melee . | . . . . . . . . Projectile 7 | . . . . 4 1 . 2 AOE 20 | . 2 5 . 13 . . . Terrain Rammed . | . . . . . . . . Walls Destroyed . | . . . . . . . . Machines Disabled . | . . . . . . . . Actions | -11 -10 -10 -9 -8 -7 -6 -5 --------- Run | Scr Mat Min Mat Mat Fac Fac Fac Total 3275 | 45 315 416 444 825 354 248 628 Wait 537 | . 15 9 49 145 57 7 255 Move 2425 | 36 279 400 353 552 265 236 304 Hop . | . . . . . . . . Pick Up 53 | 2 6 1 6 24 5 2 7 Fast Attach 10 | 6 . . . 4 . . . Attach 29 | . 1 . 3 11 2 2 10 Detach . | . . . . . . . . Swap 17 | 1 . 2 1 7 1 1 4 Drop 19 | . . 2 1 16 . . . Fire 176 | . 14 2 30 66 24 . 40 Melee 8 | . . . . . . . 8 Ram . | . . . . . . . . Kick . | . . . . . . . . Crush 1 | . . . 1 . . . . Escape Stasis . | . . . . . . . . Rewire . | . . . . . . . . Trap . | . . . . . . . . Miscellaneous . | . . . . . . . . Route ------- -11/Scrapyard -10/Materials (discovered 3 exits: *Mat / *Min x2) -10/Mines -9/Materials -8/Materials -7/Factory -6/Factory -5/Factory History --------- Turn | Location | Event 16 | -11/Scrapyard | Discovered new exit (range 15) 67 | -11/Scrapyard | Entered Materials 130 | -10/Materials | Identified exit to Mines 303 | -10/Materials | Build established: Mutant 517 | -10/Materials | Discovered new exit (range 5) 578 | -10/Materials | Entered Mines 782 | -10/Mines | Learned Materials stockpile data 866 | -10/Mines | Learned location of Zion (-6) 1028 | -10/Mines | Discovered new exit (range 16) 1095 | -10/Mines | Assisted by bots powering up and referring to "LRC-V3" 1125 | -10/Mines | Assembled infested the area 1130 | -10/Mines | Assisted by a Guerilla fighting off Assembled 1237 | -10/Mines | Entered Materials 1237 | -9/Materials | Evolved 2 slots: Utility x2 1940 | -9/Materials | Discovered new exit (range 6) 1948 | -9/Materials | Entered another Materials area 1948 | -8/Materials | Evolved 2 slots: Utility x2 3031 | -8/Materials | Lost 4 parts (1p1n2u) 3465 | -8/Materials | Discovered new exit (range 19) 3532 | -8/Materials | Entered Factory 3532 | -7/Factory | Evolved 2 slots: Propulsion x2 3553 | -7/Factory | Build established: Hacker-Mutant 3960 | -7/Factory | Discovered new exit (range 9) 3969 | -7/Factory | Entered another Factory area 3969 | -6/Factory | Evolved 2 slots: Utility x2 4130 | -6/Factory | Discovered new exit (range 9) 4253 | -6/Factory | Entered another Factory area 4253 | -5/Factory | Evolved 2 slots: Propulsion x2 4552 | -5/Factory | Build established: Hacker-Skirmisher 4936 | -5/Factory | Garrison activated, responded to threat 5005 | -5/Factory | Core integrity fell below 50% 5055 | -5/Factory | Lost 17 parts (2p5n5u5w) 5067 | -5/Factory | Core integrity fell below 20% 5071 | -5/Factory | Destroyed by P-70 Sage with Tesla Rifle Last Messages --------------- Hvy. Ion Cannon destroyed. Great Maul destroyed. Slug penetrates Subcomponent Replicator. K-01 Serf collects debris. R-10 Processor collects Corrupted Imp. Treads. Penetrated by Slug. Slug penetrates Subcomponent Replicator. Critical hit (Burn: +37). Penetrated by Slug. F-cell Engine destroyed. K-01 Serf collects debris. Penetrated by Slug. P-70 Sage resets Y-64 Sentinel, system corruption cleaned. K-01 Serf collects debris. Penetrated by Slug. Slug penetrates Wall. K-01 Serf collects debris. Penetrated by Slug. K-01 Serf collects debris. U-05 Engineer destroyed. Map ----- +----------------------------------------------------+ | ??????????????# """ """ ## #??????????? | | ??????????????# """ """ ## #??????????? | | ??????????????# ## #??????????? | | ??????????????# """ """ ## #??????????? | | ??????????????# """ """ ## #??????????? | | ??????????+ ??# """ """ ## #??????????? | | ??????????# ?# ## #??????????? | | ??????????# ?# """ """ ## #??????????? | | ??????????# # """ """ ## #??????????? | | ??????????# # """ """ ## #??????????? | | ??????????# # ## #??????????? | | ??????????# # ! ## #??????????? | | ??????? ?## ####+#############+################# | | ????? ? # % k | | ?????? ?# * | | ??????? # % | | ???????? + | | ?????????# | | ?????????# p #################+### | | ##+####### %| #???????????# | | #???????????# | | * #???????????# | | !%!![%p = ####????????# | | !==*!k|=%Yh%*% #????????# | | !%!%%%=h%Y% #????????# | | ##############"+%##%@k ####?????######### | | ?? ???""" =%!*/# """#???? | | ???????"T" """ %=%[# k " T"#?????????????# | | ?????????" """ # " """#?????????????? | | ????????? """ # " ####?????????????? | | ???????? !! # ##???????????????? | | ?????? ! ! !% # #????????????????? | | ?????# ! # =! #????????????????? | | ?????# #################g =! #????????????????? | | ??????????????? ?????? #??????????????### | | ?????????????? ?????# "F"" #??????????????+ | | ????????????? ""??????# """" ??????????????### | | ????????????# ""??????+ ???????????????? | | ????????????# "?????? # ???????????????? | | ????????????#??????? # #####??????????????? | | ??????????????????????# ???????????????????? | | ??????????????????????### ##???????????????????? | | ????????????????????????? ??????????????????????? | | ????????????????????????? ??????????????????????? | | ????????????????????????? ??????????????????##### | | ?????????????????????????????????????????????# | | ?????????????????????????????????????????????# """ | | ?????????????????????????????????????????????# "T" | | ?????????????????????????????????????????????# | | ?????????????????????????????????????????????# | +----------------------------------------------------+ Best States ------------- Heat Dissipation 40 Energy Generation 19 Energy Capacity 500 Matter Stores 300 Matter Capacity 300 Sight Range 20 Robot Scan Range 15 Terrain Scan Density 10 ECM Strength 1 Armor Coverage 150 Resistance: KI 20 Resistance: TH 20 Resistance: EX 45 Resistance: EM 20 Resistance: I 20 Resistance: S 20 Resistance: P 20 Power Shielding 66 Utility Shielding 33 Evasion (%) 55 Targeting Accuracy 5 Recoil Reduction 2 Offensive Hacking 20 Item Schematics ----------------- Carbon-fiber Leg | -8/Materials | Scanalyzed Imp. Sensor Array | -8/Materials | Scanalyzed Robot Schematics ------------------ None Fabricated ------------ Nothing Alien Tech Used ----------------- None Achievements -------------- None Challenges ------------ None Game ------ Seed GrenadeHybridWings Manual? 0 Play Time 00:52:18 Cumulative 101.9 hours Start 2022.03.31 @ 10:01:14 End 2022.03.31 @ 10:54:15 Sessions 1 Manual Loads 0 Difficulty Adventurer Special Mode None Game No. 97 Rogue 72 Adventurer 25 Explorer 0 Win Type - Total 0 Types 0/0/0/0/0/0/0/0/0 Lore% 38 Gallery% 49 Achievement% 36 Wizard Run 0 Options --------- ASCII 0 Keyboard 0 Movement Mouse Keybinds 0 Fullscreen 1 Font 12/Smallcaps Map View 83x54 Tactical HUD 0 Map Filters NONE Filters NONE Steam 1 RUN: a01f3994-8941-4f5e-b8ac-b46c30342782